[Event "Titled Tuesday Blitz October 18 Late 2022"]
[White "Dzierzak, Radoslaw"]
[Black "Kowalysko, Roman"]
[WhiteFideId "1161407"]
[BlackFideId "30918510"]
[WhiteElo "2111"]
[BlackElo "2151"]
[Result "1-0"]
[Round "11"]
[TimeControl "180+1"]
[Date "2022.10.19"]
[WhiteClock "0:01:11"]
[BlackClock "0:00:01"]

1. e4 {[%clk 0:02:56]}  c5 {[%clk 0:02:59]} 2. Nf3 {[%clk 0:02:56]}  d6 {[%clk 0:02:59]} 3. d4 {[%clk 0:02:57]}  cxd4 {[%clk 0:03:00]} 4. Nxd4 {[%clk 0:02:57]}  Nf6 {[%clk 0:03:00]} 5. Nc3 {[%clk 0:02:58]}  g6 {[%clk 0:02:59]} 6. g3 {[%clk 0:02:58]}  Nc6 {[%clk 0:02:58]} 7. Nde2 {[%clk 0:02:53]}  Bg7 {[%clk 0:02:56]} 8. Bg2 {[%clk 0:02:53]}  O-O {[%clk 0:02:56]} 9. O-O {[%clk 0:02:53]}  Qa5 {[%clk 0:02:46]} 10. h3 {[%clk 0:02:47]}  Bd7 {[%clk 0:02:40]} 11. Nd5 {[%clk 0:02:44]}  Nxd5 {[%clk 0:02:36]} 12. exd5 {[%clk 0:02:45]}  Ne5 {[%clk 0:02:31]} 13. Nd4 {[%clk 0:02:38]}  Qb6 {[%clk 0:02:02]} 14. Nb3 {[%clk 0:02:22]}  Bb5 {[%clk 0:01:56]} 15. Re1 {[%clk 0:02:20]}  Nc4 {[%clk 0:01:54]} 16. a4 {[%clk 0:02:16]}  Nxb2 {[%clk 0:01:24]} 17. Bxb2 {[%clk 0:02:15]}  Bxb2 {[%clk 0:01:24]} 18. Rb1 {[%clk 0:02:15]}  Bc3 {[%clk 0:01:21]} 19. Re3 {[%clk 0:02:07]}  Bxa4 {[%clk 0:00:51]} 20. Rxc3 {[%clk 0:02:03]}  Qd8 {[%clk 0:00:39]} 21. Nd4 {[%clk 0:01:47]}  a5 {[%clk 0:00:28]} 22. Rxb7 {[%clk 0:01:43]}  Bd7 {[%clk 0:00:27]} 23. Rcc7 {[%clk 0:01:41]}  Bc8 {[%clk 0:00:24]} 24. Nc6 {[%clk 0:01:33]}  Bxb7 {[%clk 0:00:19]} 25. Nxd8 {[%clk 0:01:31]}  Bxd5 {[%clk 0:00:13]} 26. Bxd5 {[%clk 0:01:29]}  Raxd8 {[%clk 0:00:13]} 27. Rxe7 {[%clk 0:01:29]}  a4 {[%clk 0:00:11]} 28. Qf3 {[%clk 0:01:28]}  Rde8 {[%clk 0:00:11]} 29. Bxf7+ {[%clk 0:01:27]}  Kg7 {[%clk 0:00:09]} 30. Bxe8+ {[%clk 0:01:26]}  Kg8 {[%clk 0:00:08]} 31. Bf7+ {[%clk 0:01:25]}  Kg7 {[%clk 0:00:08]} 32. Qc3+ {[%clk 0:01:18]}  Kh6 {[%clk 0:00:06]} 33. Qe3+ {[%clk 0:01:18]}  Kg7 {[%clk 0:00:05]} 34. Qd4+ {[%clk 0:01:15]}  Kh6 {[%clk 0:00:05]} 35. Qh4+ {[%clk 0:01:13]}  Kg7 {[%clk 0:00:04]} 36. Bg8+ {[%clk 0:01:12]}  Rf7 {[%clk 0:00:02]} 37. Rxf7+ {[%clk 0:01:10]}  Kxg8 {[%clk 0:00:01]} 38. Qxh7# {[%clk 0:01:11]} 1-0


[Site "https://www.chess.com"]

[Event "Titled Tuesday Blitz October 18 Late 2022"]
[White "Fernandez De La Vara, Arnaldo"]
[Black "Celestino, Rafael Teixeira"]
[WhiteFideId "3518388"]
[BlackFideId "2108925"]
[WhiteElo "2387"]
[BlackElo "2382"]
[Result "1-0"]
[Round "11"]
[TimeControl "180+1"]
[Date "2022.10.19"]
[WhiteClock "0:01:25"]
[BlackClock "0:00:43"]

1. Nf3 {[%clk 0:03:00]}  Nf6 {[%clk 0:02:59]} 2. b3 {[%clk 0:03:00]}  d5 {[%clk 0:02:59]} 3. Bb2 {[%clk 0:03:01]}  c5 {[%clk 0:03:00]} 4. g3 {[%clk 0:03:00]}  Nc6 {[%clk 0:03:00]} 5. Bg2 {[%clk 0:03:00]}  Bg4 {[%clk 0:03:00]} 6. O-O {[%clk 0:03:00]}  Qd7 {[%clk 0:03:00]} 7. d4 {[%clk 0:02:59]}  Bh3 {[%clk 0:02:58]} 8. dxc5 {[%clk 0:02:52]}  h5 {[%clk 0:02:54]} 9. c4 {[%clk 0:02:50]}  Bxg2 {[%clk 0:02:44]} 10. Kxg2 {[%clk 0:02:49]}  h4 {[%clk 0:02:43]} 11. Bxf6 {[%clk 0:02:43]}  gxf6 {[%clk 0:02:38]} 12. cxd5 {[%clk 0:02:24]}  hxg3 {[%clk 0:02:17]} 13. dxc6 {[%clk 0:02:23]}  Qh3+ {[%clk 0:02:17]} 14. Kg1 {[%clk 0:02:24]}  Rd8 {[%clk 0:02:01]} 15. cxb7 {[%clk 0:02:00]}  gxh2+ {[%clk 0:01:44]} 16. Kh1 {[%clk 0:01:58]}  Rg8 {[%clk 0:01:37]} 17. Qxd8+ {[%clk 0:01:56]}  Kxd8 {[%clk 0:01:35]} 18. b8=Q+ {[%clk 0:01:56]}  Kd7 {[%clk 0:01:35]} 19. Rd1+ {[%clk 0:01:37]}  Kc6 {[%clk 0:01:10]} 20. Nd4+ {[%clk 0:01:35]}  Kxc5 {[%clk 0:00:51]} 21. Qb5+ {[%clk 0:01:26]}  Kd6 {[%clk 0:00:49]} 22. Nf5+ {[%clk 0:01:26]}  Ke6 {[%clk 0:00:43]} 23. Qd5# {[%clk 0:01:25]} 1-0


[Site "https://www.chess.com"]

[Event "Titled Tuesday Blitz October 18 Late 2022"]
[White "Gasparyan, David"]
[Black "Kaganskiy, Gleb"]
[WhiteFideId "13311980"]
[BlackFideId "4132025"]
[WhiteElo "2365"]
[BlackElo "2165"]
[Result "1-0"]
[Round "11"]
[TimeControl "180+1"]
[Date "2022.10.19"]
[WhiteClock "0:00:33"]
[BlackClock "0:00:19"]

1. d4 {[%clk 0:03:00]}  d5 {[%clk 0:02:58]} 2. Bf4 {[%clk 0:02:58]}  c5 {[%clk 0:02:57]} 3. dxc5 {[%clk 0:02:51]}  Nc6 {[%clk 0:02:56]} 4. e3 {[%clk 0:02:47]}  e5 {[%clk 0:02:56]} 5. Bg3 {[%clk 0:02:46]}  Bxc5 {[%clk 0:02:56]} 6. Nc3 {[%clk 0:02:45]}  Nf6 {[%clk 0:02:54]} 7. Bb5 {[%clk 0:02:43]}  Bd6 {[%clk 0:02:37]} 8. Nf3 {[%clk 0:02:34]}  Bg4 {[%clk 0:02:36]} 9. h3 {[%clk 0:02:30]}  Bxf3 {[%clk 0:02:34]} 10. Qxf3 {[%clk 0:02:31]}  e4 {[%clk 0:02:34]} 11. Qe2 {[%clk 0:02:17]}  Bxg3 {[%clk 0:02:32]} 12. fxg3 {[%clk 0:02:18]}  O-O {[%clk 0:02:30]} 13. O-O-O {[%clk 0:02:13]}  Ne5 {[%clk 0:02:28]} 14. Qd2 {[%clk 0:02:11]}  a6 {[%clk 0:02:22]} 15. Be2 {[%clk 0:02:10]}  Rc8 {[%clk 0:02:05]} 16. Nxd5 {[%clk 0:02:06]}  Nxd5 {[%clk 0:02:04]} 17. Qxd5 {[%clk 0:02:07]}  Qxd5 {[%clk 0:01:43]} 18. Rxd5 {[%clk 0:02:05]}  Nc4 {[%clk 0:01:43]} 19. Bxc4 {[%clk 0:02:03]}  Rxc4 {[%clk 0:01:43]} 20. Rhd1 {[%clk 0:02:03]}  g6 {[%clk 0:01:39]} 21. R1d4 {[%clk 0:02:01]}  Rxd4 {[%clk 0:01:38]} 22. Rxd4 {[%clk 0:02:01]}  f5 {[%clk 0:01:39]} 23. Rd7 {[%clk 0:02:01]}  Rf7 {[%clk 0:01:37]} 24. Rxf7 {[%clk 0:01:57]}  Kxf7 {[%clk 0:01:38]} 25. c4 {[%clk 0:01:53]}  Ke6 {[%clk 0:01:37]} 26. Kc2 {[%clk 0:01:53]}  Ke5 {[%clk 0:01:35]} 27. b4 {[%clk 0:01:52]}  g5 {[%clk 0:01:36]} 28. a4 {[%clk 0:01:51]}  h5 {[%clk 0:01:36]} 29. g4 {[%clk 0:01:34]}  hxg4 {[%clk 0:01:29]} 30. hxg4 {[%clk 0:01:34]}  f4 {[%clk 0:01:30]} 31. Kd2 {[%clk 0:01:33]}  b6 {[%clk 0:00:56]} 32. Ke2 {[%clk 0:01:11]}  a5 {[%clk 0:00:47]} 33. bxa5 {[%clk 0:01:05]}  bxa5 {[%clk 0:00:46]} 34. exf4+ {[%clk 0:01:01]}  Kxf4 {[%clk 0:00:29]} 35. g3+ {[%clk 0:00:31]}  Kxg4 {[%clk 0:00:25]} 36. Ke3 {[%clk 0:00:31]}  Kf5 {[%clk 0:00:22]} 37. Kd4 {[%clk 0:00:31]}  g4 {[%clk 0:00:16]} 38. c5 {[%clk 0:00:31]}  e3 {[%clk 0:00:12]} 39. Kxe3 {[%clk 0:00:31]}  Ke5 {[%clk 0:00:13]} 40. c6 {[%clk 0:00:31]}  Kd6 {[%clk 0:00:14]} 41. Kf4 {[%clk 0:00:31]}  Kxc6 {[%clk 0:00:14]} 42. Kxg4 {[%clk 0:00:32]}  Kc5 {[%clk 0:00:15]} 43. Kf5 {[%clk 0:00:32]}  Kb4 {[%clk 0:00:16]} 44. g4 {[%clk 0:00:32]}  Kxa4 {[%clk 0:00:17]} 45. g5 {[%clk 0:00:33]}  Kb4 {[%clk 0:00:16]} 46. g6 {[%clk 0:00:34]}  a4 {[%clk 0:00:16]} 47. g7 {[%clk 0:00:35]}  a3 {[%clk 0:00:17]} 48. g8=Q {[%clk 0:00:35]}  Kc3 {[%clk 0:00:18]} 49. Qa2 {[%clk 0:00:35]}  Kb4 {[%clk 0:00:18]} 50. Ke4 {[%clk 0:00:35]}  Ka4 {[%clk 0:00:18]} 51. Kd4 {[%clk 0:00:35]}  Kb4 {[%clk 0:00:19]} 52. Qc4+ {[%clk 0:00:33]} 1-0


[Site "https://www.chess.com"]

[Event "Titled Tuesday Blitz October 18 Late 2022"]
[White "Girsh, Daniel"]
[Black "Forgacs, Attila Jr."]
[WhiteFideId "30949190"]
[BlackFideId "773654"]
[WhiteElo "2075"]
[BlackElo "2168"]
[Result "1/2-1/2"]
[Round "11"]
[TimeControl "180+1"]
[Date "2022.10.19"]
[WhiteClock "0:00:17"]
[BlackClock "0:00:12"]

1. d4 {[%clk 0:03:00]}  Nf6 {[%clk 0:02:59]} 2. Nc3 {[%clk 0:03:01]}  d5 {[%clk 0:02:59]} 3. Bf4 {[%clk 0:03:01]}  g6 {[%clk 0:02:59]} 4. e3 {[%clk 0:03:00]}  Bg7 {[%clk 0:02:59]} 5. h4 {[%clk 0:03:01]}  h5 {[%clk 0:02:59]} 6. Nf3 {[%clk 0:03:01]}  O-O {[%clk 0:02:59]} 7. Ne5 {[%clk 0:03:02]}  c5 {[%clk 0:02:59]} 8. dxc5 {[%clk 0:03:00]}  Qa5 {[%clk 0:03:00]} 9. Bd3 {[%clk 0:02:56]}  Qxc5 {[%clk 0:02:57]} 10. O-O {[%clk 0:02:55]}  Nc6 {[%clk 0:02:53]} 11. a3 {[%clk 0:02:53]}  Nxe5 {[%clk 0:02:52]} 12. Bxe5 {[%clk 0:02:53]}  Bg4 {[%clk 0:02:52]} 13. Qd2 {[%clk 0:02:48]}  Rac8 {[%clk 0:02:40]} 14. Rab1 {[%clk 0:02:47]}  Nd7 {[%clk 0:02:23]} 15. Bxg7 {[%clk 0:02:43]}  Kxg7 {[%clk 0:02:24]} 16. e4 {[%clk 0:02:24]}  d4 {[%clk 0:02:09]} 17. Nd5 {[%clk 0:02:23]}  Ne5 {[%clk 0:02:06]} 18. b4 {[%clk 0:02:15]}  Qd6 {[%clk 0:02:03]} 19. f4 {[%clk 0:02:07]}  Nc4 {[%clk 0:01:55]} 20. Bxc4 {[%clk 0:02:05]}  Rxc4 {[%clk 0:01:56]} 21. f5 {[%clk 0:02:03]}  Rfc8 {[%clk 0:01:47]} 22. f6+ {[%clk 0:02:00]}  exf6 {[%clk 0:01:45]} 23. Rxf6 {[%clk 0:02:01]}  Qg3 {[%clk 0:01:25]} 24. Rbf1 {[%clk 0:01:32]}  Be6 {[%clk 0:01:24]} 25. Nf4 {[%clk 0:01:12]}  Rxc2 {[%clk 0:01:12]} 26. Rxg6+ {[%clk 0:00:58]}  fxg6 {[%clk 0:01:00]} 27. Nxe6+ {[%clk 0:00:46]}  Kg8 {[%clk 0:01:00]} 28. Rf8+ {[%clk 0:00:39]}  Rxf8 {[%clk 0:01:00]} 29. Qxc2 {[%clk 0:00:35]}  Qe1+ {[%clk 0:01:00]} 30. Kh2 {[%clk 0:00:34]}  Qxh4+ {[%clk 0:01:01]} 31. Kg1 {[%clk 0:00:34]}  Qe1+ {[%clk 0:00:49]} 32. Kh2 {[%clk 0:00:34]}  Qf2 {[%clk 0:00:39]} 33. Qc4 {[%clk 0:00:26]}  Qh4+ {[%clk 0:00:34]} 34. Kg1 {[%clk 0:00:27]}  Qe1+ {[%clk 0:00:29]} 35. Kh2 {[%clk 0:00:26]}  Qh4+ {[%clk 0:00:30]} 36. Kg1 {[%clk 0:00:26]}  Rf7 {[%clk 0:00:31]} 37. Qc8+ {[%clk 0:00:25]}  Kh7 {[%clk 0:00:30]} 38. Qe8 {[%clk 0:00:16]}  Qf2+ {[%clk 0:00:26]} 39. Kh2 {[%clk 0:00:17]}  Qh4+ {[%clk 0:00:13]} 40. Kg1 {[%clk 0:00:16]}  Qe1+ {[%clk 0:00:14]} 41. Kh2 {[%clk 0:00:17]}  Qh4+ {[%clk 0:00:12]} 42. Kg1 {[%clk 0:00:17]} 1/2-1/2


[Site "https://www.chess.com"]

[Event "Titled Tuesday Blitz October 18 Late 2022"]
[White "Goltsev, Dmitry"]
[Black "Zeynalli, Rashad"]
[WhiteFideId "24176710"]
[BlackFideId "13403320"]
[WhiteElo "2257"]
[BlackElo "2125"]
[Result "1-0"]
[Round "11"]
[TimeControl "180+1"]
[Date "2022.10.18"]
[WhiteClock "0:02:32"]
[BlackClock "0:01:26"]

1. e4 {[%clk 0:02:58]}  e5 {[%clk 0:03:00]} 2. Nf3 {[%clk 0:02:58]}  Nc6 {[%clk 0:03:00]} 3. Bb5 {[%clk 0:02:58]}  Nf6 {[%clk 0:03:01]} 4. O-O {[%clk 0:02:58]}  Nxe4 {[%clk 0:03:01]} 5. d4 {[%clk 0:02:58]}  Nd6 {[%clk 0:03:01]} 6. Bxc6 {[%clk 0:02:59]}  dxc6 {[%clk 0:03:02]} 7. dxe5 {[%clk 0:03:00]}  Nf5 {[%clk 0:03:02]} 8. Qxd8+ {[%clk 0:03:00]}  Kxd8 {[%clk 0:03:02]} 9. Rd1+ {[%clk 0:03:01]}  Ke8 {[%clk 0:03:02]} 10. Bg5 {[%clk 0:03:02]}  Be6 {[%clk 0:02:55]} 11. Nc3 {[%clk 0:03:02]}  h6 {[%clk 0:02:52]} 12. Bd2 {[%clk 0:03:00]}  Bd5 {[%clk 0:02:41]} 13. Nxd5 {[%clk 0:02:58]}  cxd5 {[%clk 0:02:42]} 14. c3 {[%clk 0:02:55]}  h5 {[%clk 0:02:38]} 15. Bg5 {[%clk 0:02:54]}  c6 {[%clk 0:02:36]} 16. b3 {[%clk 0:02:53]}  Be7 {[%clk 0:02:36]} 17. c4 {[%clk 0:02:53]}  Rd8 {[%clk 0:02:31]} 18. cxd5 {[%clk 0:02:53]}  cxd5 {[%clk 0:02:21]} 19. Rac1 {[%clk 0:02:53]}  Bxg5 {[%clk 0:02:03]} 20. Nxg5 {[%clk 0:02:53]}  d4 {[%clk 0:02:02]} 21. e6 {[%clk 0:02:50]}  Nh6 {[%clk 0:01:45]} 22. exf7+ {[%clk 0:02:47]}  Nxf7 {[%clk 0:01:44]} 23. Re1+ {[%clk 0:02:47]}  Kf8 {[%clk 0:01:40]} 24. Ne6+ {[%clk 0:02:47]}  Ke7 {[%clk 0:01:40]} 25. Rc7+ {[%clk 0:02:41]}  Kf6 {[%clk 0:01:39]} 26. Nxd8 {[%clk 0:02:40]}  Rxd8 {[%clk 0:01:40]} 27. Rxb7 {[%clk 0:02:40]}  d3 {[%clk 0:01:36]} 28. Rd1 {[%clk 0:02:39]}  d2 {[%clk 0:01:34]} 29. Kf1 {[%clk 0:02:38]}  Nd6 {[%clk 0:01:28]} 30. Rxa7 {[%clk 0:02:35]}  Nb5 {[%clk 0:01:27]} 31. Ra6+ {[%clk 0:02:34]}  Ke5 {[%clk 0:01:27]} 32. Ra5 {[%clk 0:02:33]}  Rd5 {[%clk 0:01:26]} 33. a4 {[%clk 0:02:32]} 1-0


[Site "https://www.chess.com"]

[Event "Titled Tuesday Blitz October 18 Late 2022"]
[White "Gonzalez, Francisco Silva"]
[Black "Floresvillar Gonzalez, Luis Migu"]
[WhiteFideId "1512285"]
[BlackFideId "5100542"]
[WhiteElo "2159"]
[BlackElo "2040"]
[Result "1/2-1/2"]
[Round "11"]
[TimeControl "180+1"]
[Date "2022.10.19"]
[WhiteClock "0:01:48"]
[BlackClock "0:00:58"]

1. d4 {[%clk 0:02:45]}  e6 {[%clk 0:02:59]} 2. c4 {[%clk 0:02:45]}  d5 {[%clk 0:02:58]} 3. Nc3 {[%clk 0:02:39]}  Nf6 {[%clk 0:02:58]} 4. Bg5 {[%clk 0:02:38]}  Be7 {[%clk 0:02:58]} 5. e3 {[%clk 0:02:37]}  c6 {[%clk 0:02:57]} 6. Nf3 {[%clk 0:02:37]}  Ne4 {[%clk 0:02:55]} 7. Bf4 {[%clk 0:02:37]}  Qa5 {[%clk 0:02:51]} 8. Qb3 {[%clk 0:02:26]}  f5 {[%clk 0:02:51]} 9. Bd3 {[%clk 0:02:25]}  Nd7 {[%clk 0:02:49]} 10. O-O {[%clk 0:02:24]}  O-O {[%clk 0:02:48]} 11. a3 {[%clk 0:02:23]}  Ndf6 {[%clk 0:02:42]} 12. Ne5 {[%clk 0:02:15]}  Nd7 {[%clk 0:02:36]} 13. Qc2 {[%clk 0:02:14]}  Nxe5 {[%clk 0:02:35]} 14. Bxe5 {[%clk 0:02:13]}  Bf6 {[%clk 0:02:29]} 15. f4 {[%clk 0:02:13]}  Bxe5 {[%clk 0:02:28]} 16. fxe5 {[%clk 0:02:13]}  Bd7 {[%clk 0:02:25]} 17. b4 {[%clk 0:02:13]}  Qd8 {[%clk 0:02:21]} 18. Ne2 {[%clk 0:02:12]}  Qh4 {[%clk 0:02:16]} 19. a4 {[%clk 0:02:11]}  Rac8 {[%clk 0:02:06]} 20. a5 {[%clk 0:02:11]}  a6 {[%clk 0:02:04]} 21. Qa2 {[%clk 0:02:08]}  Qh6 {[%clk 0:01:57]} 22. Rf3 {[%clk 0:02:07]}  g5 {[%clk 0:01:55]} 23. Rh3 {[%clk 0:02:06]}  Qg7 {[%clk 0:01:52]} 24. b5 {[%clk 0:01:58]}  cxb5 {[%clk 0:01:50]} 25. cxd5 {[%clk 0:01:58]}  Rfe8 {[%clk 0:01:25]} 26. Bxe4 {[%clk 0:01:52]}  fxe4 {[%clk 0:01:24]} 27. d6 {[%clk 0:01:51]}  Rf8 {[%clk 0:00:59]} 28. Qc2 {[%clk 0:01:48]}  Rxc2 {[%clk 0:00:58]} 1/2-1/2


[Site "https://www.chess.com"]

[Event "Titled Tuesday Blitz October 18 Late 2022"]
[White "Hajiyev, Kanan"]
[Black "Zhurbinsky, David"]
[WhiteFideId "13404148"]
[BlackFideId "2072904"]
[WhiteElo "2118"]
[BlackElo "2583"]
[Result "1-0"]
[Round "11"]
[TimeControl "180+1"]
[Date "2022.10.19"]
[WhiteClock "0:00:02"]
[BlackClock "0:00:01"]

1. d4 {[%clk 0:02:44]}  Nf6 {[%clk 0:02:59]} 2. c4 {[%clk 0:02:42]}  e6 {[%clk 0:03:00]} 3. Nf3 {[%clk 0:02:43]}  Bb4+ {[%clk 0:02:58]} 4. Bd2 {[%clk 0:02:43]}  Qe7 {[%clk 0:02:59]} 5. a3 {[%clk 0:02:42]}  Bxd2+ {[%clk 0:02:58]} 6. Qxd2 {[%clk 0:02:43]}  d6 {[%clk 0:02:59]} 7. Nc3 {[%clk 0:02:39]}  Nbd7 {[%clk 0:02:56]} 8. g3 {[%clk 0:02:38]}  O-O {[%clk 0:02:56]} 9. Bg2 {[%clk 0:02:38]}  e5 {[%clk 0:02:56]} 10. dxe5 {[%clk 0:02:39]}  dxe5 {[%clk 0:02:56]} 11. Nd5 {[%clk 0:02:40]}  Nxd5 {[%clk 0:02:56]} 12. cxd5 {[%clk 0:02:41]}  e4 {[%clk 0:02:49]} 13. Nd4 {[%clk 0:02:40]}  Nb6 {[%clk 0:02:36]} 14. Nb5 {[%clk 0:02:28]}  Rd8 {[%clk 0:02:27]} 15. Nc3 {[%clk 0:02:15]}  Nxd5 {[%clk 0:01:53]} 16. Nxe4 {[%clk 0:01:37]}  Bf5 {[%clk 0:01:40]} 17. Qg5 {[%clk 0:01:12]}  Bxe4 {[%clk 0:00:39]} 18. Qxe7 {[%clk 0:01:11]}  Bxg2 {[%clk 0:00:39]} 19. Qc5 {[%clk 0:00:51]}  Bxh1 {[%clk 0:00:36]} 20. O-O-O {[%clk 0:00:49]}  Bg2 {[%clk 0:00:16]} 21. f3 {[%clk 0:00:49]}  Nf6 {[%clk 0:00:08]} 22. Rxd8+ {[%clk 0:00:42]}  Rxd8 {[%clk 0:00:09]} 23. Qxc7 {[%clk 0:00:43]}  Re8 {[%clk 0:00:10]} 24. Kd2 {[%clk 0:00:37]}  Bf1 {[%clk 0:00:07]} 25. e4 {[%clk 0:00:29]}  Ba6 {[%clk 0:00:07]} 26. e5 {[%clk 0:00:23]}  Nh5 {[%clk 0:00:03]} 27. f4 {[%clk 0:00:10]}  g6 {[%clk 0:00:03]} 28. Kc3 {[%clk 0:00:08]}  Ng7 {[%clk 0:00:03]} 29. b4 {[%clk 0:00:04]}  Ne6 {[%clk 0:00:03]} 30. Qd6 {[%clk 0:00:05]}  Rd8 {[%clk 0:00:04]} 31. Qe7 {[%clk 0:00:04]}  Rc8+ {[%clk 0:00:04]} 32. Kb2 {[%clk 0:00:03]}  Nd4 {[%clk 0:00:03]} 33. Qf6 {[%clk 0:00:04]}  Rc2+ {[%clk 0:00:03]} 34. Ka1 {[%clk 0:00:04]}  Rc8 {[%clk 0:00:01]} 35. g4 {[%clk 0:00:02]} 1-0


[Site "https://www.chess.com"]

[Event "Titled Tuesday Blitz October 18 Late 2022"]
[White "Hoffmann, Asa"]
[Black "Martin Carmona, Gaston Manuel"]
[WhiteFideId "2001470"]
[BlackFideId "22284567"]
[WhiteElo "2117"]
[BlackElo "2235"]
[Result "0-1"]
[Round "11"]
[TimeControl "180+1"]
[Date "2022.10.19"]
[WhiteClock "0:01:12"]
[BlackClock "0:02:11"]

1. d4 {[%clk 0:02:57]}  Nf6 {[%clk 0:02:59]} 2. Bg5 {[%clk 0:02:51]}  Ne4 {[%clk 0:02:58]} 3. Bf4 {[%clk 0:02:51]}  e6 {[%clk 0:02:58]} 4. f3 {[%clk 0:02:47]}  Bd6 {[%clk 0:02:59]} 5. Bxd6 {[%clk 0:02:46]}  Nxd6 {[%clk 0:02:58]} 6. Nc3 {[%clk 0:02:45]}  O-O {[%clk 0:02:57]} 7. e4 {[%clk 0:02:45]}  f5 {[%clk 0:02:57]} 8. e5 {[%clk 0:02:44]}  Nf7 {[%clk 0:02:58]} 9. f4 {[%clk 0:02:44]}  d6 {[%clk 0:02:58]} 10. Nf3 {[%clk 0:02:43]}  dxe5 {[%clk 0:02:58]} 11. dxe5 {[%clk 0:02:43]}  Qe7 {[%clk 0:02:57]} 12. Bc4 {[%clk 0:02:42]}  Qb4 {[%clk 0:02:56]} 13. Qd3 {[%clk 0:02:25]}  Rd8 {[%clk 0:02:55]} 14. Qxd8+ {[%clk 0:02:11]}  Nxd8 {[%clk 0:02:54]} 15. O-O-O {[%clk 0:02:09]}  Nbc6 {[%clk 0:02:51]} 16. Nd2 {[%clk 0:02:05]}  a6 {[%clk 0:02:42]} 17. h3 {[%clk 0:02:02]}  b5 {[%clk 0:02:41]} 18. Bb3 {[%clk 0:02:01]}  Qxf4 {[%clk 0:02:41]} 19. g4 {[%clk 0:02:00]}  Nxe5 {[%clk 0:02:37]} 20. gxf5 {[%clk 0:02:00]}  Qxf5 {[%clk 0:02:35]} 21. Rhf1 {[%clk 0:01:59]}  Qg5 {[%clk 0:02:30]} 22. Ne4 {[%clk 0:01:58]}  Qe7 {[%clk 0:02:29]} 23. Rde1 {[%clk 0:01:55]}  Bb7 {[%clk 0:02:26]} 24. h4 {[%clk 0:01:55]}  Ndf7 {[%clk 0:02:23]} 25. Re2 {[%clk 0:01:47]}  Re8 {[%clk 0:02:19]} 26. Rg2 {[%clk 0:01:47]}  Qxh4 {[%clk 0:02:15]} 27. Rfg1 {[%clk 0:01:42]}  Bxe4 {[%clk 0:02:12]} 28. Rxg7+ {[%clk 0:01:40]}  Kf8 {[%clk 0:02:12]} 29. Nxe4 {[%clk 0:01:15]}  Qh6+ {[%clk 0:02:12]} 30. R7g5 {[%clk 0:01:12]}  Nxg5 {[%clk 0:02:11]} 31. Nxg5 {[%clk 0:01:12]}  Nf7 {[%clk 0:02:11]} 0-1


[Site "https://www.chess.com"]

[Event "Titled Tuesday Blitz October 18 Late 2022"]
[White "Holt, Conrad"]
[Black "Urazayev, Arystanbek"]
[WhiteFideId "2034387"]
[BlackFideId "13709810"]
[WhiteElo "2592"]
[BlackElo "2441"]
[Result "1-0"]
[Round "11"]
[TimeControl "180+1"]
[Date "2022.10.18"]
[WhiteClock "0:00:15"]
[BlackClock "0:00:06"]

1. d4 {[%clk 0:02:54]}  d5 {[%clk 0:03:00]} 2. c4 {[%clk 0:02:53]}  e6 {[%clk 0:03:00]} 3. Nc3 {[%clk 0:02:53]}  Nf6 {[%clk 0:03:01]} 4. cxd5 {[%clk 0:02:53]}  exd5 {[%clk 0:03:02]} 5. Bg5 {[%clk 0:02:53]}  c6 {[%clk 0:03:02]} 6. Qc2 {[%clk 0:02:48]}  Bd6 {[%clk 0:02:55]} 7. e3 {[%clk 0:02:44]}  O-O {[%clk 0:02:54]} 8. Bd3 {[%clk 0:02:42]}  h6 {[%clk 0:02:55]} 9. Bh4 {[%clk 0:02:43]}  Re8 {[%clk 0:02:55]} 10. Nf3 {[%clk 0:02:43]}  Be6 {[%clk 0:02:55]} 11. Ne5 {[%clk 0:02:42]}  c5 {[%clk 0:02:56]} 12. Bb5 {[%clk 0:02:31]}  cxd4 {[%clk 0:02:50]} 13. exd4 {[%clk 0:02:25]}  Nc6 {[%clk 0:02:37]} 14. Bxc6 {[%clk 0:02:23]}  bxc6 {[%clk 0:02:38]} 15. O-O {[%clk 0:02:23]}  c5 {[%clk 0:02:33]} 16. Nb5 {[%clk 0:02:18]}  cxd4 {[%clk 0:01:33]} 17. Bxf6 {[%clk 0:02:12]}  Qxf6 {[%clk 0:01:17]} 18. Nxd6 {[%clk 0:02:10]}  Red8 {[%clk 0:01:17]} 19. Rfe1 {[%clk 0:01:42]}  Rxd6 {[%clk 0:01:17]} 20. Qc5 {[%clk 0:01:38]}  Rb6 {[%clk 0:01:13]} 21. Qxd4 {[%clk 0:01:37]}  Rab8 {[%clk 0:01:13]} 22. b3 {[%clk 0:01:36]}  a5 {[%clk 0:01:14]} 23. Rad1 {[%clk 0:01:31]}  Rb4 {[%clk 0:01:12]} 24. Qa7 {[%clk 0:01:27]}  R4b5 {[%clk 0:01:02]} 25. Nc6 {[%clk 0:01:19]}  Re8 {[%clk 0:00:55]} 26. Qa6 {[%clk 0:01:15]}  Rc5 {[%clk 0:00:52]} 27. Nxa5 {[%clk 0:01:01]}  Rc2 {[%clk 0:00:37]} 28. Re2 {[%clk 0:01:01]}  Rxe2 {[%clk 0:00:21]} 29. Qxe2 {[%clk 0:01:00]}  Ra8 {[%clk 0:00:06]} 30. Nc6 {[%clk 0:00:56]}  Rc8 {[%clk 0:00:03]} 31. Nd4 {[%clk 0:00:54]}  Bd7 {[%clk 0:00:03]} 32. g3 {[%clk 0:00:49]}  Bh3 {[%clk 0:00:03]} 33. Qh5 {[%clk 0:00:40]}  Bd7 {[%clk 0:00:02]} 34. Qxd5 {[%clk 0:00:39]}  Bh3 {[%clk 0:00:03]} 35. Qh5 {[%clk 0:00:35]}  Bd7 {[%clk 0:00:03]} 36. Qf3 {[%clk 0:00:34]}  Qe5 {[%clk 0:00:02]} 37. a4 {[%clk 0:00:31]}  Bh3 {[%clk 0:00:02]} 38. g4 {[%clk 0:00:25]}  Rd8 {[%clk 0:00:02]} 39. Qxh3 {[%clk 0:00:25]}  Rxd4 {[%clk 0:00:02]} 40. Rxd4 {[%clk 0:00:24]}  Qxd4 {[%clk 0:00:03]} 41. Qf3 {[%clk 0:00:23]}  Qb4 {[%clk 0:00:03]} 42. h3 {[%clk 0:00:20]}  g6 {[%clk 0:00:03]} 43. Qd3 {[%clk 0:00:18]}  h5 {[%clk 0:00:03]} 44. Qc4 {[%clk 0:00:17]}  Qe1+ {[%clk 0:00:03]} 45. Kg2 {[%clk 0:00:17]}  h4 {[%clk 0:00:03]} 46. b4 {[%clk 0:00:16]}  Qe8 {[%clk 0:00:02]} 47. b5 {[%clk 0:00:16]}  Qa8+ {[%clk 0:00:02]} 48. Kg1 {[%clk 0:00:16]}  Qa5 {[%clk 0:00:02]} 49. Qd4 {[%clk 0:00:14]}  Qe1+ {[%clk 0:00:01]} 50. Kg2 {[%clk 0:00:15]}  Kh7 {[%clk 0:00:01]} 51. b6 {[%clk 0:00:15]}  Qe8 {[%clk 0:00:01]} 52. Qd5 {[%clk 0:00:14]}  Qb8 {[%clk 0:00:02]} 53. b7 {[%clk 0:00:14]}  f5 {[%clk 0:00:02]} 54. Qf7+ {[%clk 0:00:14]}  Kh6 {[%clk 0:00:03]} 55. gxf5 {[%clk 0:00:14]}  gxf5 {[%clk 0:00:03]} 56. Qf6+ {[%clk 0:00:15]}  Kh5 {[%clk 0:00:04]} 57. Qxf5+ {[%clk 0:00:15]}  Kh6 {[%clk 0:00:04]} 58. Qc8 {[%clk 0:00:12]}  Qf4 {[%clk 0:00:04]} 59. b8=Q {[%clk 0:00:13]}  Qe4+ {[%clk 0:00:04]} 60. Kf1 {[%clk 0:00:13]}  Qd3+ {[%clk 0:00:05]} 61. Ke1 {[%clk 0:00:14]}  Qe4+ {[%clk 0:00:05]} 62. Kd2 {[%clk 0:00:14]}  Qd4+ {[%clk 0:00:05]} 63. Kc2 {[%clk 0:00:15]}  Qe4+ {[%clk 0:00:06]} 64. Kc3 {[%clk 0:00:15]}  Qe5+ {[%clk 0:00:06]} 65. Kb4 {[%clk 0:00:15]}  Qd4+ {[%clk 0:00:06]} 66. Kb3 {[%clk 0:00:15]}  Qd5+ {[%clk 0:00:06]} 67. Kc3 {[%clk 0:00:16]}  Qe5+ {[%clk 0:00:06]} 68. Qxe5 {[%clk 0:00:15]} 1-0


[Site "https://www.chess.com"]